[Event "Early-Titled-Tuesday-Blitz-March-19-2024"]
[Site "Chess.com"]
[Date "2024.03.19"]
[Round "8"]
[White "DvaHrasta"]
[Black "AlexPapasimakopoulos"]
[Result "0-1"]
[WhiteElo "2495"]
[BlackElo "2759"]
[TimeControl "180+1"]
[EndTime "9:29:25 PDT"]
[Termination "AlexPapasimakopoulos won on time"]

1. c4 {[%clk 0:03:00.9]} 1... e6 {[%clk 0:02:59.2]} 2. g3 {[%clk 0:03:00.6]}
2... d5 {[%clk 0:02:59.7]} 3. d4 {[%clk 0:03:00.7]} 3... Bb4+ {[%clk 0:02:54]}
4. Nc3 {[%clk 0:02:56.5]} 4... Nf6 {[%clk 0:02:51.5]} 5. Qa4+ {[%clk 0:02:53.9]}
5... Nc6 {[%clk 0:02:51.8]} 6. Bg5 {[%clk 0:02:47.9]} 6... O-O {[%clk
0:02:51.1]} 7. Nf3 {[%clk 0:02:43.2]} 7... Bd7 {[%clk 0:02:47.3]} 8. Rc1 {[%clk
0:02:28.2]} 8... a5 {[%clk 0:02:40.5]} 9. Bxf6 {[%clk 0:02:20.9]} 9... Qxf6
{[%clk 0:02:37.8]} 10. cxd5 {[%clk 0:02:17.5]} 10... exd5 {[%clk 0:02:31.9]} 11.
Qd1 {[%clk 0:01:56.2]} 11... Bg4 {[%clk 0:02:20.7]} 12. Bg2 {[%clk 0:01:52.4]}
12... Bxf3 {[%clk 0:02:19.2]} 13. Bxf3 {[%clk 0:01:47]} 13... Nxd4 {[%clk
0:02:19.3]} 14. O-O {[%clk 0:01:34.3]} 14... Nxf3+ {[%clk 0:02:18.8]} 15. exf3
{[%clk 0:01:34.3]} 15... c6 {[%clk 0:02:12.3]} 16. Kg2 {[%clk 0:01:27.3]} 16...
Rfe8 {[%clk 0:02:05.6]} 17. Qb3 {[%clk 0:01:22.8]} 17... Re7 {[%clk 0:01:56.1]}
18. a3 {[%clk 0:01:18.5]} 18... Bxc3 {[%clk 0:01:55.1]} 19. Rxc3 {[%clk
0:01:13.7]} 19... a4 {[%clk 0:01:29.6]} 20. Qb6 {[%clk 0:01:07.4]} 20... Rd7
{[%clk 0:01:27.6]} 21. Re1 {[%clk 0:01:03.7]} 21... Qd8 {[%clk 0:01:27.7]} 22.
Qd4 {[%clk 0:00:59.9]} 22... h6 {[%clk 0:01:28]} 23. Rce3 {[%clk 0:00:59.4]}
23... Qf6 {[%clk 0:01:24.3]} 24. Qd3 {[%clk 0:00:53.7]} 24... Qg6 {[%clk
0:01:24.1]} 25. Qd4 {[%clk 0:00:49.8]} 25... Qd6 {[%clk 0:01:19.4]} 26. Re8+
{[%clk 0:00:40.2]} 26... Rxe8 {[%clk 0:01:19.2]} 27. Rxe8+ {[%clk 0:00:40.2]}
27... Kh7 {[%clk 0:01:19.8]} 28. Qxa4 {[%clk 0:00:40]} 28... d4 {[%clk
0:01:20.2]} 29. h4 {[%clk 0:00:34.6]} 29... Qd5 {[%clk 0:01:15.5]} 30. g4 {[%clk
0:00:28.4]} 30... h5 {[%clk 0:01:14.7]} 31. Qa8 {[%clk 0:00:17.4]} 31... hxg4
{[%clk 0:01:14.1]} 32. Rh8+ {[%clk 0:00:17.4]} 32... Kg6 {[%clk 0:01:14.5]} 33.
h5+ {[%clk 0:00:10.7]} 33... Kf6 {[%clk 0:01:11.7]} 34. h6 {[%clk 0:00:10.7]}
34... Qxf3+ {[%clk 0:01:08.3]} 35. Kg1 {[%clk 0:00:09.8]} 35... g3 {[%clk
0:01:08.6]} 36. fxg3 {[%clk 0:00:09]} 36... Qxg3+ {[%clk 0:01:08.2]} 37. Kh1
{[%clk 0:00:06.2]} 37... Qh4+ {[%clk 0:00:48.3]} 38. Kg1 {[%clk 0:00:06.3]}
38... gxh6 {[%clk 0:00:48.6]} 39. Qf8 {[%clk 0:00:05]} 39... Qg5+ {[%clk
0:00:42.6]} 40. Kf2 {[%clk 0:00:04.5]} 40... Ke5 {[%clk 0:00:32.9]} 41. Rxh6
{[%clk 0:00:03.6]} 41... Re7 {[%clk 0:00:23.9]} 42. Qh8+ {[%clk 0:00:02.9]}
42... Ke4 {[%clk 0:00:14.7]} 43. Rh4+ {[%clk 0:00:02.5]} 43... Kd3 {[%clk
0:00:15.1]} 44. Qxd4+ {[%clk 0:00:02]} 44... Kc2 {[%clk 0:00:14.8]} 0-1

[Event "Early-Titled-Tuesday-Blitz-March-19-2024"]
[Site "Chess.com"]
[Date "2024.03.19"]
[Round "8"]
[White "Louis-Paulsen-Fan"]
[Black "ajeale2"]
[Result "0-1"]
[WhiteElo "2274"]
[BlackElo "2448"]
[TimeControl "180+1"]
[EndTime "9:29:26 PDT"]
[Termination "ajeale2 won by resignation"]

1. d4 {[%clk 0:03:00.9]} 1... g6 {[%clk 0:02:58.2]} 2. Nf3 {[%clk 0:03:01]} 2...
Bg7 {[%clk 0:02:58.8]} 3. c4 {[%clk 0:03:00.8]} 3... Nf6 {[%clk 0:02:59]} 4. Nc3
{[%clk 0:03:01.1]} 4... d6 {[%clk 0:02:57.1]} 5. e4 {[%clk 0:03:01.1]} 5... O-O
{[%clk 0:02:57.4]} 6. Be2 {[%clk 0:03:01.6]} 6... Nc6 {[%clk 0:02:57.6]} 7. O-O
{[%clk 0:03:01.5]} 7... e5 {[%clk 0:02:57.9]} 8. d5 {[%clk 0:03:02.1]} 8... Ne7
{[%clk 0:02:57.6]} 9. Ne1 {[%clk 0:03:02.2]} 9... Ne8 {[%clk 0:02:53]} 10. f3
{[%clk 0:03:02.7]} 10... f5 {[%clk 0:02:53.1]} 11. g4 {[%clk 0:03:03]} 11... Nf6
{[%clk 0:02:28.3]} 12. Nd3 {[%clk 0:03:02.6]} 12... Bd7 {[%clk 0:02:21.1]} 13.
Be3 {[%clk 0:02:59.7]} 13... b6 {[%clk 0:01:56]} 14. h3 {[%clk 0:02:59]} 14...
f4 {[%clk 0:01:50.4]} 15. Bf2 {[%clk 0:02:58.8]} 15... g5 {[%clk 0:01:50.5]} 16.
b4 {[%clk 0:02:54.8]} 16... h5 {[%clk 0:01:46.9]} 17. Kg2 {[%clk 0:02:51.8]}
17... Kf7 {[%clk 0:01:44.2]} 18. c5 {[%clk 0:02:50.7]} 18... Rh8 {[%clk
0:01:42.2]} 19. Rh1 {[%clk 0:02:50.1]} 19... Ng6 {[%clk 0:01:40]} 20. Nb2 {[%clk
0:02:42]} 20... Nh4+ {[%clk 0:00:59.7]} 21. Bxh4 {[%clk 0:02:41.3]} 21... gxh4
{[%clk 0:00:59.4]} 22. cxd6 {[%clk 0:02:41.6]} 22... cxd6 {[%clk 0:00:59.1]} 23.
Nc4 {[%clk 0:02:41.9]} 23... Qe7 {[%clk 0:00:54.9]} 24. a4 {[%clk 0:02:40.9]}
24... Rac8 {[%clk 0:00:53.1]} 25. Nb5 {[%clk 0:02:35.5]} 25... Bxb5 {[%clk
0:00:48.4]} 26. axb5 {[%clk 0:02:36.4]} 26... hxg4 {[%clk 0:00:45.6]} 27. hxg4
{[%clk 0:02:29.3]} 27... h3+ {[%clk 0:00:45.1]} 28. Kh2 {[%clk 0:02:20.1]} 28...
Ne8 {[%clk 0:00:44.3]} 29. Ra2 {[%clk 0:01:41.8]} 29... Rc7 {[%clk 0:00:43.2]}
30. Qd2 {[%clk 0:01:36.2]} 30... Bf6 {[%clk 0:00:32.9]} 31. Rha1 {[%clk
0:01:15.3]} 31... Bh4 {[%clk 0:00:32]} 32. Ra3 {[%clk 0:01:01.9]} 32... Bf2
{[%clk 0:00:24.5]} 33. Qd1 {[%clk 0:00:22.2]} 33... Qh4 {[%clk 0:00:23.6]} 34.
Qf1 {[%clk 0:00:21.5]} 34... Rxc4 {[%clk 0:00:07.6]} 35. Rxa7+ {[%clk
0:00:16.9]} 35... Rc7 {[%clk 0:00:06.2]} 36. Rxc7+ {[%clk 0:00:16.4]} 36... Nxc7
{[%clk 0:00:06.5]} 37. Ra7 {[%clk 0:00:16.8]} 37... Qg3+ {[%clk 0:00:06.2]} 38.
Kh1 {[%clk 0:00:16.9]} 38... Rc8 {[%clk 0:00:06.7]} 39. Rb7 {[%clk 0:00:09.7]}
39... Kg6 {[%clk 0:00:05.3]} 40. Ra7 {[%clk 0:00:09.8]} 40... Bd4 {[%clk
0:00:04.2]} 41. Rb7 {[%clk 0:00:09.8]} 41... h2 {[%clk 0:00:04.5]} 42. Ra7
{[%clk 0:00:06.6]} 42... Qg1+ {[%clk 0:00:04]} 0-1

[Event "Early-Titled-Tuesday-Blitz-March-19-2024"]
[Site "Chess.com"]
[Date "2024.03.19"]
[Round "8"]
[White "cthulhuuu"]
[Black "Witik"]
[Result "0-1"]
[WhiteElo "2403"]
[BlackElo "2757"]
[TimeControl "180+1"]
[EndTime "9:29:28 PDT"]
[Termination "Witik won on time"]

1. e4 {[%clk 0:03:00]} 1... e5 {[%clk 0:03:00.2]} 2. Nf3 {[%clk 0:03:00.3]} 2...
Nc6 {[%clk 0:03:00.7]} 3. Bb5 {[%clk 0:03:00.8]} 3... a6 {[%clk 0:03:00.8]} 4.
Bxc6 {[%clk 0:03:01.3]} 4... dxc6 {[%clk 0:03:00.5]} 5. O-O {[%clk 0:03:02.2]}
5... f6 {[%clk 0:03:00.7]} 6. d4 {[%clk 0:03:02.3]} 6... exd4 {[%clk 0:03:00.1]}
7. Nxd4 {[%clk 0:03:03.2]} 7... c5 {[%clk 0:02:59.9]} 8. Nb3 {[%clk 0:03:03.8]}
8... Qxd1 {[%clk 0:02:57.8]} 9. Rxd1 {[%clk 0:03:04.7]} 9... Bg4 {[%clk
0:02:58.1]} 10. f3 {[%clk 0:03:05.2]} 10... Be6 {[%clk 0:02:58.1]} 11. Bf4
{[%clk 0:03:05.3]} 11... c4 {[%clk 0:02:53]} 12. Na5 {[%clk 0:03:05.3]} 12...
Bc5+ {[%clk 0:02:39.3]} 13. Kf1 {[%clk 0:03:05.4]} 13... b5 {[%clk 0:02:27.1]}
14. Nc3 {[%clk 0:03:02.8]} 14... Ne7 {[%clk 0:02:12.2]} 15. a4 {[%clk
0:02:57.3]} 15... Bb6 {[%clk 0:01:29.5]} 16. axb5 {[%clk 0:02:05.4]} 16... axb5
{[%clk 0:01:30.4]} 17. Nb7 {[%clk 0:01:18.6]} 17... Rxa1 {[%clk 0:01:27.1]} 18.
Rxa1 {[%clk 0:01:19.5]} 18... Kd7 {[%clk 0:01:27.7]} 19. Rd1+ {[%clk 0:00:52.9]}
19... Kc8 {[%clk 0:01:24.8]} 20. Nd6+ {[%clk 0:00:52.2]} 20... cxd6 {[%clk
0:01:10.2]} 21. Rxd6 {[%clk 0:00:53.1]} 21... Ng6 {[%clk 0:00:42.2]} 22. Rxe6
{[%clk 0:00:43.8]} 22... Ba5 {[%clk 0:00:39.7]} 23. Bg3 {[%clk 0:00:16.1]} 23...
b4 {[%clk 0:00:31.1]} 24. Nd5 {[%clk 0:00:16.3]} 24... Kb7 {[%clk 0:00:31.8]}
25. h4 {[%clk 0:00:15.4]} 25... h5 {[%clk 0:00:31.4]} 26. Rd6 {[%clk 0:00:15.3]}
26... b3 {[%clk 0:00:20.7]} 27. cxb3 {[%clk 0:00:15.2]} 27... cxb3 {[%clk
0:00:21.6]} 28. Rd7+ {[%clk 0:00:15.6]} 28... Kc6 {[%clk 0:00:22.3]} 29. Rxg7
{[%clk 0:00:15.4]} 29... Ne5 {[%clk 0:00:22.8]} 30. Nxf6 {[%clk 0:00:12.1]}
30... Nc4 {[%clk 0:00:22]} 31. Rg6 {[%clk 0:00:08.4]} 31... Nxb2 {[%clk
0:00:20.4]} 32. Nxh5+ {[%clk 0:00:06.4]} 32... Kb5 {[%clk 0:00:20.7]} 33. Be5
{[%clk 0:00:06]} 33... Rxh5 {[%clk 0:00:18.1]} 34. Bxb2 {[%clk 0:00:06.5]} 34...
Rxh4 {[%clk 0:00:17.7]} 35. Rg5+ {[%clk 0:00:06.7]} 35... Ka4 {[%clk 0:00:16.7]}
36. e5 {[%clk 0:00:05.8]} 36... Rh1+ {[%clk 0:00:16.7]} 37. Kf2 {[%clk
0:00:05.5]} 37... Rb1 {[%clk 0:00:17.6]} 38. Bd4 {[%clk 0:00:05.1]} 38... Rd1
{[%clk 0:00:12.9]} 39. Bb2 {[%clk 0:00:03.7]} 39... Rd2+ {[%clk 0:00:13.1]} 40.
Kg3 {[%clk 0:00:04.2]} 40... Rxb2 {[%clk 0:00:14]} 41. Kf4 {[%clk 0:00:03.2]}
41... Re2 {[%clk 0:00:13.2]} 42. Kf5 {[%clk 0:00:02]} 42... b2 {[%clk 0:00:13]}
0-1

[Event "Early-Titled-Tuesday-Blitz-March-19-2024"]
[Site "Chess.com"]
[Date "2024.03.19"]
[Round "8"]
[White "Joachim100x"]
[Black "Daaksboy"]
[Result "1-0"]
[WhiteElo "2499"]
[BlackElo "2053"]
[TimeControl "180+1"]
[EndTime "9:29:29 PDT"]
[Termination "Joachim100x won on time"]

1. e4 {[%clk 0:03:00.9]} 1... c5 {[%clk 0:02:59.2]} 2. Nf3 {[%clk 0:03:00.7]}
2... d6 {[%clk 0:02:59.7]} 3. d4 {[%clk 0:03:00.8]} 3... cxd4 {[%clk 0:02:59.2]}
4. Nxd4 {[%clk 0:03:01.7]} 4... Nf6 {[%clk 0:02:59.6]} 5. Nc3 {[%clk 0:03:02]}
5... a6 {[%clk 0:03:00.2]} 6. f4 {[%clk 0:03:02.3]} 6... e5 {[%clk 0:03:00]} 7.
Nf3 {[%clk 0:03:02.7]} 7... Qc7 {[%clk 0:03:00.6]} 8. Bd3 {[%clk 0:03:02.9]}
8... Nbd7 {[%clk 0:03:00.9]} 9. O-O {[%clk 0:03:03.1]} 9... Be7 {[%clk
0:03:01.4]} 10. a4 {[%clk 0:03:03.2]} 10... O-O {[%clk 0:03:01.6]} 11. Kh1
{[%clk 0:03:03.7]} 11... b6 {[%clk 0:03:02]} 12. fxe5 {[%clk 0:03:03.8]} 12...
dxe5 {[%clk 0:03:01.9]} 13. Qe1 {[%clk 0:03:03.9]} 13... Bb7 {[%clk 0:03:02.1]}
14. Qg3 {[%clk 0:03:04.1]} 14... Kh8 {[%clk 0:03:02.2]} 15. Bg5 {[%clk
0:03:03.8]} 15... Rad8 {[%clk 0:02:52.7]} 16. Rae1 {[%clk 0:03:02.9]} 16... h6
{[%clk 0:02:52.4]} 17. Qh3 {[%clk 0:02:55.7]} 17... Nc5 {[%clk 0:02:47]} 18. Nh4
{[%clk 0:02:38.1]} 18... Bc8 {[%clk 0:02:30.8]} 19. Nf5 {[%clk 0:02:36.4]} 19...
Bxf5 {[%clk 0:02:24.1]} 20. Rxf5 {[%clk 0:02:34.5]} 20... Nxd3 {[%clk
0:02:24.5]} 21. cxd3 {[%clk 0:02:34.4]} 21... Nh7 {[%clk 0:01:59.1]} 22. Bxe7
{[%clk 0:02:23.6]} 22... Qxe7 {[%clk 0:01:59.1]} 23. Nd5 {[%clk 0:02:24.3]}
23... Qe6 {[%clk 0:01:57.7]} 24. Qg3 {[%clk 0:02:17.3]} 24... Rxd5 {[%clk
0:01:56.2]} 25. exd5 {[%clk 0:02:12.7]} 25... Qxf5 {[%clk 0:01:55.3]} 26. h3
{[%clk 0:02:13.2]} 26... Nf6 {[%clk 0:01:54]} 27. Rxe5 {[%clk 0:02:12.2]} 27...
Qf1+ {[%clk 0:01:54]} 28. Kh2 {[%clk 0:02:12.4]} 28... Rc8 {[%clk 0:01:53.3]}
29. Qe3 {[%clk 0:02:06.9]} 29... Rc1 {[%clk 0:01:50.4]} 30. d6 {[%clk
0:02:05.7]} 30... Rc2 {[%clk 0:01:29.6]} 31. Qg3 {[%clk 0:01:56.6]} 31... Rc1
{[%clk 0:01:06.3]} 32. Qe3 {[%clk 0:01:52.6]} 32... Qh1+ {[%clk 0:01:05.6]} 33.
Kg3 {[%clk 0:01:52.5]} 33... Rc2 {[%clk 0:01:02.4]} 34. Qf3 {[%clk 0:01:46.1]}
34... Qg1 {[%clk 0:00:58.5]} 35. d7 {[%clk 0:01:30.3]} 35... Nh5+ {[%clk
0:00:39]} 36. Rxh5 {[%clk 0:01:02.1]} 36... Rxg2+ {[%clk 0:00:08.5]} 37. Qxg2
{[%clk 0:01:01.6]} 37... Qe3+ {[%clk 0:00:08.1]} 38. Kh2 {[%clk 0:00:58.4]}
38... Qf4+ {[%clk 0:00:08.3]} 39. Kg1 {[%clk 0:00:54.9]} 39... Qc1+ {[%clk
0:00:06]} 40. Qf1 {[%clk 0:00:55.1]} 40... Qe3+ {[%clk 0:00:05.4]} 41. Qf2
{[%clk 0:00:55.3]} 41... Qxd3 {[%clk 0:00:05]} 42. Rf5 {[%clk 0:00:40.7]} 42...
Qd1+ {[%clk 0:00:03.9]} 43. Kg2 {[%clk 0:00:38.3]} 43... Qxd7 {[%clk 0:00:03.5]}
44. Rxf7 {[%clk 0:00:37.2]} 44... Qd5+ {[%clk 0:00:03.5]} 45. Rf3 {[%clk
0:00:31.3]} 45... Qg5+ {[%clk 0:00:03.6]} 46. Kh2 {[%clk 0:00:30.5]} 46... Qe5+
{[%clk 0:00:03.2]} 47. Qg3 {[%clk 0:00:31]} 47... Qe2+ {[%clk 0:00:03.2]} 48.
Rf2 {[%clk 0:00:31.4]} 48... Qe7 {[%clk 0:00:03.1]} 49. Qf4 {[%clk 0:00:31.4]}
1-0

[Event "Early-Titled-Tuesday-Blitz-March-19-2024"]
[Site "Chess.com"]
[Date "2024.03.19"]
[Round "8"]
[White "BallottiLuca"]
[Black "Pumpkin_in_moonlight"]
[Result "1-0"]
[WhiteElo "2372"]
[BlackElo "2231"]
[TimeControl "180+1"]
[EndTime "9:29:29 PDT"]
[Termination "BallottiLuca won on time"]

1. Nf3 {[%clk 0:02:51.6]} 1... c5 {[%clk 0:02:58.8]} 2. g3 {[%clk 0:02:52.5]}
2... Nc6 {[%clk 0:02:58.8]} 3. Bg2 {[%clk 0:02:53.4]} 3... d5 {[%clk 0:02:58.5]}
4. O-O {[%clk 0:02:54.3]} 4... Nf6 {[%clk 0:02:57.8]} 5. c4 {[%clk 0:02:54.7]}
5... e6 {[%clk 0:02:53.9]} 6. cxd5 {[%clk 0:02:54.3]} 6... exd5 {[%clk
0:02:53.6]} 7. Nc3 {[%clk 0:02:53.9]} 7... Be7 {[%clk 0:02:48.9]} 8. b3 {[%clk
0:02:53.2]} 8... h6 {[%clk 0:02:48.2]} 9. Bb2 {[%clk 0:02:53.5]} 9... Be6 {[%clk
0:02:40.8]} 10. Rc1 {[%clk 0:02:53.7]} 10... O-O {[%clk 0:02:35.5]} 11. Qc2
{[%clk 0:02:53.3]} 11... Rc8 {[%clk 0:02:32.1]} 12. Qb1 {[%clk 0:02:52.1]} 12...
Qd7 {[%clk 0:02:11.5]} 13. Rfd1 {[%clk 0:02:51.2]} 13... d4 {[%clk 0:02:07.6]}
14. Na4 {[%clk 0:02:50.4]} 14... Bf5 {[%clk 0:02:01.3]} 15. d3 {[%clk
0:02:50.2]} 15... b6 {[%clk 0:01:59.2]} 16. Ba3 {[%clk 0:02:46.7]} 16... Nd5
{[%clk 0:01:53.2]} 17. Qa1 {[%clk 0:02:24.8]} 17... Rfe8 {[%clk 0:01:50.6]} 18.
Nd2 {[%clk 0:02:23.3]} 18... Bf8 {[%clk 0:01:33.6]} 19. Re1 {[%clk 0:02:22.9]}
19... h5 {[%clk 0:00:53.7]} 20. h4 {[%clk 0:02:21.7]} 20... Bh3 {[%clk
0:00:50.4]} 21. Ne4 {[%clk 0:02:18.8]} 21... Bxg2 {[%clk 0:00:48.8]} 22. Kxg2
{[%clk 0:02:19.7]} 22... Qg4 {[%clk 0:00:46.8]} 23. Rc2 {[%clk 0:02:12.3]} 23...
Nf4+ {[%clk 0:00:44.9]} 24. Kg1 {[%clk 0:02:06]} 24... Be7 {[%clk 0:00:26.9]}
25. Qc1 {[%clk 0:02:04.2]} 25... Ng6 {[%clk 0:00:17.1]} 26. f3 {[%clk
0:01:10.4]} 26... Qh3 {[%clk 0:00:15.8]} 27. e3 {[%clk 0:00:52]} 27... Nce5
{[%clk 0:00:13.6]} 28. Qd1 {[%clk 0:00:48.6]} 28... dxe3 {[%clk 0:00:11.9]} 29.
Rh2 {[%clk 0:00:47.8]} 29... Qd7 {[%clk 0:00:09.3]} 30. Rxe3 {[%clk 0:00:48]}
30... Bd8 {[%clk 0:00:06.7]} 31. Nac3 {[%clk 0:00:47.7]} 31... Nc6 {[%clk
0:00:05.7]} 32. Bb2 {[%clk 0:00:44.7]} 32... Nd4 {[%clk 0:00:05.6]} 33. Qe1
{[%clk 0:00:41.6]} 33... Bc7 {[%clk 0:00:05.7]} 34. Rg2 {[%clk 0:00:38.9]} 34...
Rcd8 {[%clk 0:00:05.1]} 35. Kf2 {[%clk 0:00:38.1]} 35... f5 {[%clk 0:00:03.2]}
36. Nd2 {[%clk 0:00:37.1]} 36... f4 {[%clk 0:00:03.2]} 37. Rxe8+ {[%clk
0:00:35.7]} 37... Rxe8 {[%clk 0:00:03.1]} 38. Nce4 {[%clk 0:00:36.4]} 38...
fxg3+ {[%clk 0:00:03]} 39. Kg1 {[%clk 0:00:36.8]} 39... Nf4 {[%clk 0:00:02.8]}
40. Rxg3 {[%clk 0:00:35.9]} 40... Qf7 {[%clk 0:00:02.5]} 41. Bxd4 {[%clk
0:00:35.2]} 41... Nxd3 {[%clk 0:00:02.1]} 42. Nf6+ {[%clk 0:00:26.2]} 42... Kh8
{[%clk 0:00:01.7]} 43. Qxe8+ {[%clk 0:00:25.8]} 43... Qxe8 {[%clk 0:00:02.1]}
44. Nxe8 {[%clk 0:00:26.7]} 44... Bxg3 {[%clk 0:00:02.3]} 45. Bxg7+ {[%clk
0:00:26.1]} 45... Kg8 {[%clk 0:00:02.2]} 46. Bf6 {[%clk 0:00:24.3]} 46... Kf7
{[%clk 0:00:02.5]} 47. Ne4 {[%clk 0:00:23.8]} 47... Bf4 {[%clk 0:00:01.2]} 48.
Ng7 {[%clk 0:00:21.6]} 1-0

[Event "Early-Titled-Tuesday-Blitz-March-19-2024"]
[Site "Chess.com"]
[Date "2024.03.19"]
[Round "8"]
[White "Hikaru"]
[Black "GM_dmitrij"]
[Result "1-0"]
[WhiteElo "3285"]
[BlackElo "3089"]
[TimeControl "180+1"]
[EndTime "9:29:30 PDT"]
[Termination "Hikaru won by checkmate"]

1. Nf3 {[%clk 0:03:00.9]} 1... d5 {[%clk 0:02:59.5]} 2. e3 {[%clk 0:02:59.5]}
2... c5 {[%clk 0:02:59.1]} 3. b3 {[%clk 0:02:55.4]} 3... Nc6 {[%clk 0:02:58]} 4.
Bb5 {[%clk 0:02:54.9]} 4... f6 {[%clk 0:02:57.8]} 5. c4 {[%clk 0:02:53.6]} 5...
d4 {[%clk 0:02:56.4]} 6. b4 {[%clk 0:02:43.4]} 6... e5 {[%clk 0:02:56]} 7. bxc5
{[%clk 0:02:42.1]} 7... Bxc5 {[%clk 0:02:52.6]} 8. Nxd4 {[%clk 0:02:35.4]} 8...
Bxd4 {[%clk 0:02:43.7]} 9. exd4 {[%clk 0:02:35.2]} 9... Qxd4 {[%clk 0:02:35.6]}
10. O-O {[%clk 0:02:35.3]} 10... Ne7 {[%clk 0:02:31]} 11. Ba3 {[%clk 0:02:12.9]}
11... O-O {[%clk 0:02:21.3]} 12. Nc3 {[%clk 0:01:49.6]} 12... Rf7 {[%clk
0:02:15.7]} 13. Ba4 {[%clk 0:01:40.5]} 13... a6 {[%clk 0:02:07.6]} 14. Nd5
{[%clk 0:01:25.2]} 14... Bg4 {[%clk 0:01:38.4]} 15. Qb3 {[%clk 0:01:13.5]} 15...
Nxd5 {[%clk 0:01:20.4]} 16. cxd5 {[%clk 0:01:14.4]} 16... Na5 {[%clk 0:01:20.8]}
17. Qb4 {[%clk 0:01:11.9]} 17... Nc4 {[%clk 0:01:18.9]} 18. Rfc1 {[%clk
0:00:58.8]} 18... b5 {[%clk 0:01:15]} 19. Bb3 {[%clk 0:00:58.9]} 19... Nxd2
{[%clk 0:00:54.4]} 20. d6 {[%clk 0:00:54.2]} 20... Nxb3 {[%clk 0:00:52.3]} 21.
Qxb3 {[%clk 0:00:55.1]} 21... Rd8 {[%clk 0:00:19.4]} 22. Bb4 {[%clk 0:00:49.4]}
22... g5 {[%clk 0:00:15.4]} 23. a4 {[%clk 0:00:49.1]} 23... Bd7 {[%clk 0:00:14]}
24. a5 {[%clk 0:00:39.8]} 24... Kg7 {[%clk 0:00:13.5]} 25. Ra2 {[%clk
0:00:38.4]} 25... Qg4 {[%clk 0:00:13.2]} 26. Rac2 {[%clk 0:00:36.2]} 26... Be6
{[%clk 0:00:12.5]} 27. Qa3 {[%clk 0:00:35.2]} 27... Bd5 {[%clk 0:00:12.5]} 28.
f3 {[%clk 0:00:24.8]} 28... Bxf3 {[%clk 0:00:12.9]} 29. h3 {[%clk 0:00:25.1]}
29... Qd4+ {[%clk 0:00:13]} 30. Rf2 {[%clk 0:00:25.8]} 30... Bd5 {[%clk
0:00:10.7]} 31. Rc7 {[%clk 0:00:26]} 31... Rdd7 {[%clk 0:00:09.2]} 32. Rc8
{[%clk 0:00:23.4]} 32... e4 {[%clk 0:00:07.5]} 33. Bc3 {[%clk 0:00:22.7]} 33...
Qd3 {[%clk 0:00:06.1]} 34. Qb2 {[%clk 0:00:18.6]} 34... Rxd6 {[%clk 0:00:06]}
35. Rd2 {[%clk 0:00:17.2]} 35... Qe3+ {[%clk 0:00:05.1]} 36. Kh1 {[%clk
0:00:17.8]} 36... Qf4 {[%clk 0:00:01.8]} 37. Rf2 {[%clk 0:00:17.9]} 37... Qe3
{[%clk 0:00:02]} 38. Bd4 {[%clk 0:00:13.8]} 38... Qd3 {[%clk 0:00:02.3]} 39. Rf5
{[%clk 0:00:12.4]} 39... e3 {[%clk 0:00:02.3]} 40. Rxg5+ {[%clk 0:00:12.8]}
40... Kh6 {[%clk 0:00:02.9]} 41. Rg3 {[%clk 0:00:13.4]} 41... Qd1+ {[%clk
0:00:02.9]} 42. Kh2 {[%clk 0:00:13.8]} 42... e2 {[%clk 0:00:03.6]} 43. Be3+
{[%clk 0:00:11.2]} 43... Kh5 {[%clk 0:00:04.1]} 44. Qb4 {[%clk 0:00:12]} 44...
Bc4 {[%clk 0:00:03.4]} 45. Rxc4 {[%clk 0:00:12.6]} 45... bxc4 {[%clk 0:00:03.5]}
46. Qxc4 {[%clk 0:00:13.5]} 46... Rd4 {[%clk 0:00:03]} 47. Qxf7+ {[%clk
0:00:12.7]} 47... Kh4 {[%clk 0:00:02.8]} 48. Qxh7# {[%clk 0:00:12.4]} 1-0

[Event "Early-Titled-Tuesday-Blitz-March-19-2024"]
[Site "Chess.com"]
[Date "2024.03.19"]
[Round "8"]
[White "Durarbayli"]
[Black "PepeCuenca"]
[Result "1-0"]
[WhiteElo "2980"]
[BlackElo "2729"]
[TimeControl "180+1"]
[EndTime "9:29:31 PDT"]
[Termination "Durarbayli won on time"]

1. e4 {[%clk 0:03:00.9]} 1... c5 {[%clk 0:02:54.4]} 2. Nf3 {[%clk 0:03:00.8]}
2... Nc6 {[%clk 0:02:54]} 3. d4 {[%clk 0:03:01.5]} 3... cxd4 {[%clk 0:02:54.3]}
4. Nxd4 {[%clk 0:03:02.4]} 4... e5 {[%clk 0:02:54.5]} 5. Nb5 {[%clk 0:03:02]}
5... d6 {[%clk 0:02:54.6]} 6. c4 {[%clk 0:03:02.3]} 6... g6 {[%clk 0:02:54.3]}
7. Be3 {[%clk 0:02:57.5]} 7... Be6 {[%clk 0:02:49.2]} 8. Be2 {[%clk 0:02:57.3]}
8... Nf6 {[%clk 0:02:36.7]} 9. N1c3 {[%clk 0:02:56.7]} 9... a6 {[%clk
0:02:36.3]} 10. Na3 {[%clk 0:02:57.2]} 10... Bg7 {[%clk 0:02:35]} 11. Qd2 {[%clk
0:02:57.7]} 11... O-O {[%clk 0:02:26.6]} 12. O-O {[%clk 0:02:55.4]} 12... Rc8
{[%clk 0:02:24.4]} 13. Rfd1 {[%clk 0:02:55.1]} 13... Nd4 {[%clk 0:02:23.2]} 14.
Bxd4 {[%clk 0:02:52.2]} 14... exd4 {[%clk 0:02:23.4]} 15. Qxd4 {[%clk
0:02:53.1]} 15... Nd5 {[%clk 0:02:18.6]} 16. Qd2 {[%clk 0:02:13.8]} 16... Nxc3
{[%clk 0:02:17.1]} 17. bxc3 {[%clk 0:02:14.7]} 17... Qa5 {[%clk 0:02:15.3]} 18.
Nb1 {[%clk 0:02:14.3]} 18... Bxc4 {[%clk 0:02:10.9]} 19. Bxc4 {[%clk 0:02:14.5]}
19... Rxc4 {[%clk 0:02:11.5]} 20. Qxd6 {[%clk 0:02:03.6]} 20... Rxe4 {[%clk
0:02:03.1]} 21. Qd3 {[%clk 0:01:57.3]} 21... Ree8 {[%clk 0:01:49.6]} 22. Qf3
{[%clk 0:01:55.2]} 22... Rd8 {[%clk 0:01:44.8]} 23. Rf1 {[%clk 0:01:50.6]} 23...
Qd5 {[%clk 0:01:30.8]} 24. Qxd5 {[%clk 0:01:27.5]} 24... Rxd5 {[%clk 0:01:30.8]}
25. a4 {[%clk 0:01:28.4]} 25... Rfd8 {[%clk 0:01:23.6]} 26. Ra3 {[%clk 0:01:26]}
26... Ra5 {[%clk 0:01:04.3]} 27. g3 {[%clk 0:01:15.2]} 27... b5 {[%clk
0:00:59.8]} 28. axb5 {[%clk 0:01:14.7]} 28... Rxb5 {[%clk 0:00:37.5]} 29. Rxa6
{[%clk 0:01:14.5]} 29... Rdb8 {[%clk 0:00:25.3]} 30. Na3 {[%clk 0:01:11.6]}
30... Rc5 {[%clk 0:00:22.5]} 31. c4 {[%clk 0:01:11.7]} 31... Rbc8 {[%clk
0:00:11.2]} 32. Rb1 {[%clk 0:01:08.6]} 32... Bf8 {[%clk 0:00:10.8]} 33. Kg2
{[%clk 0:00:23.3]} 33... R5c7 {[%clk 0:00:10.9]} 34. Nc2 {[%clk 0:00:22.2]}
34... Rxc4 {[%clk 0:00:10.9]} 35. Ne3 {[%clk 0:00:22.9]} 35... R4c6 {[%clk
0:00:10.9]} 36. Ra4 {[%clk 0:00:21.5]} 36... Rd8 {[%clk 0:00:07.6]} 37. Rb5
{[%clk 0:00:20.8]} 37... Rc5 {[%clk 0:00:06.5]} 38. Rb7 {[%clk 0:00:20.5]} 38...
Rc6 {[%clk 0:00:04.6]} 39. Rf4 {[%clk 0:00:19.7]} 39... f5 {[%clk 0:00:02.6]}
40. Ra4 {[%clk 0:00:19.8]} 40... Bc5 {[%clk 0:00:02.2]} 41. Nc4 {[%clk
0:00:17.5]} 41... Bd4 {[%clk 0:00:01.9]} 42. Kf3 {[%clk 0:00:12.5]} 42... Re6
{[%clk 0:00:02.2]} 43. Na5 {[%clk 0:00:11.5]} 43... Bc5 {[%clk 0:00:02.2]} 44.
Rc4 {[%clk 0:00:10.3]} 44... Bb6 {[%clk 0:00:02]} 45. Nc6 {[%clk 0:00:09.9]}
45... Rde8 {[%clk 0:00:01.9]} 46. Rxb6 {[%clk 0:00:09.8]} 1-0